bitfinex-derivatives/quotes_SOLF0:USTF0_20251024
["timestamp","ask_amount","ask_price","bid_price","bid_amount"]
[1761329348037,2.65,191.69,191.6,7.68270151]
[1761329348837,2.65,191.67,191.6,7.68270151]
[1761329349145,2.65,191.65,191.59,7.0212863]
[1761329350335,2.65,191.65,191.57,7.0212863]
[1761329350527,2.65,191.63,191.56,191.75037444]
[1761329351234,2.65,191.63,191.56,186.90767293]
[1761329353141,2.65,191.61,191.54,4.84270151]
[1761329353542,2.65,191.61,191.54,7.68270151]
[1761329354034,2.65,191.61,191.54,2.84]
[1761329356937,2.65,191.59,191.52,7.0212863]
[1761329357144,2.65,191.59,191.52,2.17858479]
[1761329358141,2.65,191.59,191.51,2.84]
[1761329358331,2.65,191.59,191.51,2.17858479]
[1761329358731,2.17858479,191.58,191.51,2.17858479]
[1761329358937,2.65,191.55,191.44,7.68270151]
[1761329359244,2.65,191.55,191.47,2.17858479]
[1761329359440,2.65,191.55,191.43,4.84270151]
[1761329359441,2.65,191.53,191.42,184.06582612]
[1761329359741,2.65,191.53,191.46,2.17858479]
[1761329360344,2.65,191.53,191.48,2.17858479]
[1761329361944,2.65,191.53,191.43,2.84]
[1761329362144,2.65,191.53,191.47,2.17858479]
[1761329365147,2.65,191.53,191.46,2.17858479]
[1761329365650,2.65,191.51,191.43,2.17858479]
[1761329365852,2.65,191.49,191.43,2.17858479]
[1761329366438,2.65,191.48,191.39,2.84]
[1761329366742,2.65,191.48,191.41,2.17858479]
[1761329371852,2.65,191.48,191.43,2.17858479]
[1761329372048,14.78985873,191.5,191.46,2.84]
[1761329372049,17.43985873,191.5,191.46,2.84]
[1761329372255,17.43985873,191.5,191.47,2.17858479]
[1761329372745,2.65,191.49,191.47,2.17858479]
[1761329373740,14.78985873,191.5,191.47,5.01858479]
[1761329373942,2.65,191.59,191.49,5.01858479]
[1761329374144,2.65,191.57,191.52,2.17858479]
[1761329374356,2.65,191.57,191.54,2.17858479]
[1761329376053,2.65,191.57,191.52,2.84]
[1761329376458,2.65,191.57,191.53,2.17858479]
[1761329376656,2.65,191.57,191.54,2.84]
[1761329377948,2.65,191.57,191.53,2.17858479]
[1761329378157,2.65,191.57,191.53,4.90858479]
[1761329380453,2.67,191.61,191.55,2.17858479]
[1761329380655,63.44,191.6,191.54,2.73]
[1761329384661,65.61858479,191.6,191.54,2.73]
[1761329384852,63.44,191.6,191.54,2.73]
[1761329385354,63.44,191.6,191.56,2.73]
[1761329388260,63.44,191.6,191.57,2.17858479]
[1761329388563,63.44,191.6,191.58,2.73]
[1761329393167,83.01844352,191.64,191.58,2.73]
[1761329394466,2.17858479,191.66,191.59,2.73]
[1761329394658,63.38,191.65,191.59,2.73]
[1761329395267,66.05,191.65,191.59,2.73]
[1761329395467,2.67,191.64,191.59,2.73]
[1761329396267,2.67,191.64,191.56,2.73]
[1761329396459,2.17858479,191.62,191.56,2.73]
[1761329397766,63.36,191.63,191.57,2.68]
[1761329399361,65.97,191.63,191.57,2.68]
[1761329400768,2.61,191.61,191.57,2.68]
[1761329401372,2.61,191.61,191.55,2.68]
[1761329402568,63.36,191.63,191.55,2.68]
[1761329402766,63.32,191.63,191.57,2.68]
[1761329402967,65.93,191.63,191.57,2.68]
[1761329406582,2.17858479,191.62,191.57,2.68]
[1761329406779,4.78858479,191.62,191.57,2.68]
[1761329407486,2.17858479,191.62,191.57,2.68]
[1761329407680,63.32,191.63,191.57,2.68]
[1761329407879,68.29858479,191.65,191.57,2.68]
[1761329408283,68.29858479,191.65,191.58,2.87]
[1761329409078,2.78,191.62,191.58,2.87]
[1761329410384,2.17858479,191.63,191.58,2.87]
[1761329410385,4.95858479,191.63,191.58,2.87]
[1761329410786,2.78,191.63,191.58,2.87]
[1761329416784,2.78,191.62,191.54,2.87]
[1761329418690,6.18465357,191.65,191.55,2.87]
[1761329418886,2.78,191.64,191.55,2.87]
[1761329421700,2.78,191.63,191.55,2.87]
[1761329423101,3.40465357,191.62,191.55,2.87]
[1761329423300,2.78,191.61,191.55,2.87]
[1761329424304,2.78,191.61,191.56,2.87]
[1761329428409,2.78,191.61,191.55,4.84270151]
[1761329428595,2.78,191.61,191.54,4.84270151]
[1761329428993,3.40465357,191.59,191.54,4.84270151]
[1761329429199,2.78,191.58,191.53,2.87]
[1761329429695,2.78,191.58,191.51,4.84270151]
[1761329430100,2.78,191.58,191.51,7.71270151]
[1761329431707,2.78,191.58,191.51,2.87]
[1761329432306,2.78,191.58,191.5,4.84270151]
[1761329432507,2.78,191.58,191.5,2.87]
[1761329433103,2.78,191.58,191.48,4.84270151]
[1761329433703,2.78,191.58,191.48,7.71270151]
[1761329434310,2.78,191.58,191.48,2.87]
[1761329437510,2.78,191.55,191.48,2.87]
[1761329446121,2.78,191.55,191.47,180.01036276]
[1761329448225,2.78,191.55,191.47,182.80036276]
[1761329449629,2.78,191.55,191.47,180.01036276]
[1761329449924,2.78,191.55,191.47,182.80036276]
[1761329450521,2.78,191.55,191.47,2.79]
[1761329450825,2.78,191.53,191.44,2.79]
[1761329454026,6.18465357,191.53,191.44,2.79]
[1761329454333,2.78,191.52,191.41,6.19465357]
[1761329455422,2.78,191.52,191.41,3.40465357]
[1761329455623,2.78,191.52,191.42,2.79]
[1761329455826,2.78,191.51,191.42,2.79]
[1761329462132,14.78985873,191.54,191.48,2.64]
[1761329462322,2.69,191.56,191.48,2.64]
[1761329463033,6.48483763,191.63,191.41,4.84270151]
[1761329463034,2.69,191.6,191.54,2.64]
[1761329465035,2.69,191.6,191.56,3.40465357]
[1761329465233,2.69,191.6,191.56,6.04465357]
[1761329467137,2.69,191.6,191.57,2.64]
[1761329467437,2.69,191.63,191.57,2.64]
[1761329468433,2.69,191.63,191.56,3.40465357]
[1761329470139,2.69,191.63,191.57,2.74]
[1761329472941,66.04,191.62,191.57,2.74]
[1761329473439,66.04,191.62,191.59,2.74]
[1761329474132,14.78985873,191.64,191.59,2.74]
[1761329474338,2.76,191.63,191.59,2.74]
[1761329474542,66.04,191.63,191.59,2.74]
[1761329475639,2.76,191.62,191.58,4.9193565]
[1761329476442,2.76,191.62,191.59,2.74]
[1761329478737,14.78985873,191.64,191.59,2.74]
[1761329479045,2.76,191.62,191.59,2.74]
[1761329480739,2.76,191.62,191.55,2.1793565]
[1761329480943,2.76,191.62,191.56,2.74]
[1761329481143,2.76,191.6,191.56,2.74]
[1761329482643,2.76,191.58,191.51,2.1793565]
[1761329482843,2.1793565,191.57,191.52,2.74]
[1761329483043,2.76,191.56,191.52,2.74]
[1761329485250,2.1793565,191.55,191.52,2.74]
[1761329485638,2.76,191.54,191.49,2.74]
[1761329485848,2.1793565,191.53,191.49,2.74]
[1761329486547,2.76,191.54,191.49,2.74]
[1761329486853,2.1793565,191.55,191.49,2.74]
[1761329490547,2.76,191.52,191.49,2.74]
[1761329490752,2.1793565,191.51,191.46,182.39747644]
[1761329490950,2.76,191.5,191.47,2.74]
[1761329491344,2.1793565,191.51,191.47,2.74]
[1761329492550,2.1793565,191.49,191.47,2.74]
[1761329494854,4.9393565,191.5,191.47,2.74]
[1761329495256,4.9393565,191.5,191.36,6.45861537]
[1761329495257,2.76,191.49,191.43,2.74]
[1761329497552,2.1793565,191.5,191.43,2.74]
[1761329500061,5.8683643,191.52,191.44,2.81]
[1761329502059,2.78,191.51,191.44,2.81]
[1761329505858,4.9593565,191.5,191.44,2.81]
[1761329506362,2.78,191.49,191.44,2.81]
[1761329506565,0.9090078,191.52,191.44,2.81]
[1761329506566,2.78,191.47,191.44,2.81]
[1761329509560,2.78,191.47,191.4,2.81]
[1761329512461,2.1793565,191.46,191.4,2.81]
[1761329512766,2.78,191.45,191.4,2.81]
[1761329519979,2.65,191.43,191.37,2.81]
[1761329521275,2.65,191.41,191.37,2.81]
[1761329523370,2.65,191.41,191.31,4.7036]
[1761329523572,2.65,191.41,191.35,4.9893565]
[1761329525967,2.65,191.41,191.35,2.81]
[1761329526174,2.65,191.39,191.32,2.81]
[1761329529584,2.64,191.35,191.29,2.68]
[1761329531672,47.26,191.41,191.27,2.1793565]
[1761329531673,2.64,191.33,191.27,2.1793565]
[1761329532182,2.64,191.33,191.26,2.68]
[1761329532385,2.64,191.33,191.27,2.68]
[1761329537283,2.64,191.37,191.3,2.68]
[1761329557596,14.78985873,191.38,191.31,3.41612534]
[1761329557801,36.01,191.4,191.32,2.78]
[1761329562094,2.79,191.4,191.32,2.78]
[1761329567702,2.79,191.4,191.33,2.78]
[1761329569097,2.79,191.4,191.33,4.7031]
[1761329569304,63.28,191.42,191.34,2.78]
[1761329569495,66.07,191.42,191.34,2.78]
[1761329570710,66.07,191.42,191.35,2.78]
[1761329574709,66.07,191.42,191.36,2.78]
[1761329578115,2.78,191.41,191.36,2.78]
[1761329581408,63.28,191.42,191.32,4.84270151]
[1761329581618,2.78,191.45,191.37,2.67]
[1761329581808,2.78,191.45,191.38,2.67]
[1761329582003,2.78,191.45,191.35,4.84270151]
[1761329582310,2.78,191.45,191.2,337.77396378]
[1761329582311,2.78,191.42,191.36,2.67]
[1761329586327,2.78,191.41,191.36,2.67]
[1761329593635,2.78,191.41,191.35,4.7027]
[1761329593636,3.41612534,191.4,191.34,2.7]
[1761329593831,2.78,191.39,191.34,2.7]
[1761329594734,2.18512417,191.37,191.34,2.7]
[1761329595035,4.96512417,191.35,191.32,2.7]
[1761329595332,4.96512417,191.37,191.32,2.7]
[1761329595534,2.78,191.36,191.32,2.7]
[1761329604540,4.96512417,191.36,191.32,2.7]
[1761329606236,5.76293304,191.42,191.32,4.7034]
[1761329606543,2.18512417,191.4,191.34,2.7]
[1761329607040,4.96512417,191.4,191.34,2.7]
[1761329607638,2.78,191.39,191.34,2.7]
[1761329607942,4.96512417,191.38,191.34,2.7]
[1761329608142,2.78,191.37,191.34,2.7]
[1761329609241,4.40569849,191.4,191.34,2.7]
[1761329609443,4.40569849,191.41,191.34,4.84270151]
[1761329609637,4.40569849,191.41,191.35,2.7]
[1761329609847,4.40569849,191.41,191.36,2.7]
[1761329610045,2.78,191.4,191.36,2.7]
[1761329612146,5.31521707,191.42,191.36,2.7]
[1761329612449,8.09521707,191.42,191.36,2.7]
[1761329613351,8.09521707,191.42,191.38,2.7]
[1761329613352,4.40569849,191.41,191.38,2.7]
[1761329613754,0.90951858,191.42,191.38,2.7]
[1761329614050,8.09521707,191.42,191.38,2.7]
[1761329614355,2.78,191.41,191.38,2.7]
[1761329617165,29.46,191.47,191.4,2.7]
[1761329617166,4.50085971,191.44,191.4,2.7]
[1761329617345,0.90935222,191.46,191.42,2.7]
[1761329617550,4.50032151,191.45,191.42,2.7]
[1761329617854,3.68935222,191.46,191.42,2.7]
[1761329618049,4.50066296,191.45,191.42,2.7]
[1761329618659,3.68935222,191.46,191.42,2.7]
[1761329618851,2.78,191.46,191.42,2.7]
[1761329620251,0.90917404,191.49,191.42,2.7]
[1761329620252,3.68917404,191.49,191.42,2.7]
[1761329620458,3.68917404,191.49,191.4,4.7014]
[1761329620459,2.78,191.48,191.45,2.81]
[1761329621057,3.68917404,191.49,191.45,2.81]
[1761329621252,2.78,191.48,191.45,2.81]
[1761329621464,4.49984587,191.47,191.45,2.81]
[1761329621756,2.78,191.48,191.45,2.81]
[1761329622057,7.27685441,191.48,191.45,2.81]
[1761329622260,2.78,191.48,191.45,2.81]
[1761329622453,0.90917404,191.49,191.45,2.81]
[1761329622654,4.49438887,191.49,191.45,2.81]
[1761329622854,7.27438887,191.5,191.45,2.81]
[1761329623051,4.49438887,191.49,191.45,2.81]
[1761329623257,2.78,191.51,191.48,4.99512417]
[1761329623457,2.78,191.51,191.48,2.81]
[1761329626956,0.90899593,191.53,191.48,2.81]
[1761329627156,2.78,191.52,191.48,2.81]
[1761329632453,2.78,191.52,191.45,2.81]
[1761329632661,2.78,191.51,191.45,2.81]
[1761329634754,4.96512417,191.5,191.45,2.81]
[1761329634966,2.78,191.49,191.45,2.81]
[1761329635464,5.38282488,191.53,191.45,2.81]
[1761329635465,4.96512417,191.48,191.45,2.81]
[1761329636968,2.78,191.47,191.45,2.81]
[1761329638564,2.78,191.47,191.43,2.78]
[1761329640877,4.97512417,191.46,191.43,2.78]
[1761329641180,2.18512417,191.46,191.43,2.78]
[1761329641570,2.18512417,191.48,191.44,2.78]
[1761329642379,2.79,191.49,191.44,2.78]
[1761329642582,2.18512417,191.5,191.45,2.78]
[1761329643180,4.97512417,191.5,191.45,2.78]
[1761329643382,2.18512417,191.5,191.45,2.78]
[1761329643973,2.18512417,191.5,191.45,4.7002]
[1761329644175,2.18512417,191.5,191.46,2.78]
[1761329645083,3.69899593,191.53,191.46,2.78]
[1761329645283,4.97512417,191.51,191.46,2.78]
[1761329646082,2.18512417,191.49,191.42,4.7009]
[1761329646280,2.18512417,191.49,191.43,2.78]
[1761329646281,2.18512417,191.47,191.43,2.78]
[1761329646584,4.97512417,191.49,191.43,2.78]
[1761329652379,2.18512417,191.49,191.43,2.78]
[1761329652576,2.73,191.48,191.43,2.78]
[1761329653088,0.90899593,191.53,191.43,2.78]
[1761329653089,4.91512417,191.47,191.43,2.78]
[1761329653891,4.91512417,191.45,191.43,2.78]
[1761329654184,2.73,191.44,191.41,2.73]
[1761329656385,2.73,191.44,191.39,2.73]
[1761329656591,2.73,191.44,191.38,185.12281052]
[1761329656790,2.73,191.42,191.38,185.12281052]
[1761329657398,2.73,191.42,191.38,187.85281052]
[1761329657578,2.73,191.42,191.38,185.12281052]
[1761329657991,2.73,191.42,191.38,187.85281052]
[1761329658787,4.65479419,191.41,191.38,187.85281052]
[1761329658993,2.73,191.4,191.38,187.85281052]
[1761329659691,2.73,191.4,191.38,185.12281052]
[1761329662791,7.3834977,191.4,191.38,185.12281052]
[1761329662992,2.73,191.4,191.38,185.12281052]
[1761329663494,7.3834977,191.4,191.38,185.12281052]
[1761329663792,2.73,191.4,191.38,185.12281052]
[1761329664094,2.73,191.4,191.38,187.85281052]
[1761329664292,19.85341446,191.47,191.39,2.73]
[1761329664293,4.65135054,191.42,191.39,2.73]
[1761329664588,4.65135054,191.46,191.39,2.73]
[1761329664791,4.65135054,191.45,191.39,2.73]
[1761329665096,2.73,191.5,191.39,2.73]
[1761329665289,7.38172083,191.49,191.39,2.73]
[1761329665490,4.65172083,191.48,191.39,2.73]
[1761329665793,4.65172083,191.47,191.39,2.73]
[1761329665992,4.65172083,191.46,191.41,2.73]
[1761329666188,4.65172083,191.45,191.41,2.73]
[1761329666381,4.65163264,191.48,191.41,2.73]
[1761329666583,4.65163264,191.47,191.41,2.73]
[1761329666789,4.65163264,191.46,191.41,2.73]
[1761329666993,2.73,191.49,191.41,2.73]
[1761329666994,4.65163264,191.45,191.41,2.73]
[1761329667188,4.65163264,191.48,191.41,2.73]
[1761329667390,4.65163264,191.47,191.41,2.73]
[1761329667583,4.65163264,191.46,191.41,2.73]
[1761329667885,4.65163264,191.45,191.41,2.73]
[1761329668091,4.64983775,191.48,191.41,2.73]
[1761329668300,4.64983775,191.47,191.41,2.73]
[1761329668485,4.64983775,191.46,191.41,2.73]
[1761329668685,4.64983775,191.45,191.41,2.73]
[1761329668886,4.64983775,191.48,191.41,2.73]
[1761329669099,4.64983775,191.47,191.41,2.73]
[1761329669298,4.64983775,191.46,191.41,2.73]
[1761329669598,4.64983775,191.48,191.42,2.73]
[1761329669791,4.64983775,191.47,191.42,2.73]
[1761329669995,2.73,191.49,191.42,2.73]
[1761329670193,4.65068139,191.48,191.43,2.73]
[1761329670489,4.65068139,191.47,191.43,2.73]
[1761329670693,2.73,191.49,191.43,2.73]
[1761329670892,7.38075663,191.48,191.43,2.73]
[1761329671098,2.73,191.46,191.43,2.73]
[1761329671399,7.38075663,191.46,191.43,2.73]
[1761329671595,2.73,191.46,191.43,2.73]
[1761329671794,2.73,191.46,191.4,71.31279856]
[1761329671795,2.73,191.46,191.4,65.93]
[1761329671993,2.73,191.46,191.4,2.73]
[1761329672195,2.73,191.44,191.4,2.73]
[1761329672394,4.65052492,191.43,191.4,2.73]
[1761329673393,2.73,191.44,191.4,2.73]
[1761329675807,7.38151762,191.43,191.4,2.73]
[1761329675995,2.73,191.43,191.4,2.73]
[1761329676696,4.65151762,191.42,191.4,2.73]
[1761329677003,4.6263171,191.42,191.4,2.73]
[1761329677201,2.73,191.43,191.4,2.73]
[1761329677805,4.62629008,191.42,191.4,2.73]
[1761329683908,4.62629008,191.42,191.38,185.12281052]
[1761329683909,2.63,191.41,191.38,185.12281052]
[1761329685105,2.63,191.41,191.38,187.90281052]
[1761329686207,2.63,191.41,191.38,185.12281052]
[1761329686402,2.63,191.41,191.38,187.90281052]
[1761329686603,4.62524512,191.42,191.39,2.78]
[1761329686912,2.63,191.44,191.39,2.78]
[1761329686913,4.62537806,191.43,191.39,2.78]
[1761329687114,4.62537806,191.42,191.39,2.78]
[1761329687315,2.63,191.44,191.39,2.78]
[1761329687316,4.62537806,191.43,191.39,2.78]
[1761329687505,2.63,191.44,191.39,2.78]
[1761329687705,7.25567285,191.43,191.39,2.78]
[1761329687911,2.63,191.43,191.39,2.78]
[1761329688307,4.62608379,191.42,191.39,2.78]
[1761329690514,2.63,191.43,191.39,2.78]
[1761329690714,4.62733088,191.42,191.39,2.78]
[1761329691015,2.63,191.43,191.39,2.78]
[1761329691210,7.25709361,191.42,191.39,2.78]
[1761329691516,2.63,191.42,191.39,2.78]
[1761329694318,4.62978086,191.41,191.39,2.78]
[1761329694520,2.63,191.42,191.39,2.78]
[1761329694720,4.62978086,191.41,191.39,2.78]
[1761329694923,2.63,191.42,191.39,2.78]
[1761329695113,4.62961321,191.41,191.39,2.78]
[1761329695315,2.63,191.43,191.39,2.78]
[1761329695510,2.63,191.41,191.39,2.78]
[1761329696115,2.63,191.41,191.38,185.12281052]
[1761329696116,4.630226,191.4,191.38,185.12281052]
[1761329696322,2.63,191.45,191.38,187.90281052]
[1761329696522,2.63,191.43,191.38,187.90281052]
[1761329696722,2.63,191.41,191.38,187.90281052]
[1761329696923,4.63100703,191.4,191.38,2.78]
[1761329697227,2.63,191.41,191.38,2.78]
[1761329697416,4.63099321,191.4,191.38,2.78]
[1761329697618,2.76,191.45,191.38,2.78]
[1761329697818,2.76,191.43,191.38,2.78]
[1761329698117,7.3921619,191.42,191.38,2.78]
[1761329698317,4.6321619,191.41,191.38,2.78]
[1761329698517,4.6321619,191.4,191.38,2.78]
[1761329698720,2.76,191.42,191.38,2.78]
[1761329698916,4.63344242,191.41,191.38,2.78]
[1761329699122,4.63344242,191.4,191.38,2.78]
[1761329699321,2.76,191.42,191.38,2.78]
[1761329699526,4.6341187,191.41,191.38,2.78]
[1761329699727,4.6341187,191.4,191.38,2.78]
[1761329699928,2.76,191.41,191.38,2.78]
[1761329700128,4.63411833,191.4,191.38,2.78]
[1761329700427,4.63490614,191.39,191.38,2.78]
[1761329706042,2.76,191.41,191.38,2.78]
[1761329706237,4.63452126,191.4,191.38,2.78]
[1761329706536,2.76,191.41,191.38,2.78]
[1761329706729,4.64288558,191.4,191.38,2.78]
[1761329706931,2.76,191.41,191.38,2.78]
[1761329707232,4.64288558,191.4,191.38,2.78]
[1761329707430,2.76,191.41,191.38,2.78]
[1761329707630,4.64308902,191.4,191.38,2.78]
[1761329707838,2.76,191.41,191.38,2.78]
[1761329708038,4.64309065,191.4,191.38,2.78]
[1761329708239,2.76,191.41,191.38,2.78]
[1761329708437,4.64330449,191.4,191.38,2.78]
[1761329708742,15.0,191.47,191.38,2.78]
[1761329708743,2.79,191.44,191.39,2.68]
[1761329708938,4.64282658,191.43,191.39,2.68]
[1761329709141,4.64282658,191.42,191.39,2.68]
[1761329709341,4.64282658,191.41,191.4,7.3815]
[1761329709642,2.79,191.49,191.42,2.68]
[1761329709941,2.79,191.49,191.41,179.39999684]
[1761329709942,2.79,191.49,191.44,2.68]
[1761329710744,2.79,191.49,191.45,2.68]
[1761329711247,2.79,191.52,191.45,2.68]
[1761329711534,2.79,191.52,191.45,4.7002]
[1761329711741,2.79,191.52,191.46,2.68]
[1761329711938,2.79,191.52,191.47,2.68]
[1761329712127,2.79,191.52,191.43,4.88548183]
[1761329712331,2.79,191.52,191.44,2.68]
[1761329712531,2.79,191.51,191.44,2.68]
[1761329716440,2.79,191.51,191.42,8.11219856]
[1761329716642,2.79,191.51,191.42,10.79219856]
[1761329716938,2.79,191.51,191.43,2.18214078]
[1761329717139,2.79,191.47,191.41,179.39999684]
[1761329718050,2.79,191.47,191.42,2.68]
[1761329718544,2.18214078,191.46,191.41,179.39999684]
[1761329718746,2.79,191.45,191.41,179.39999684]
[1761329719748,2.79,191.45,191.41,182.07999684]
[1761329721147,2.79,191.45,191.41,179.39999684]
[1761329721455,4.57094228,191.44,191.41,179.39999684]
[1761329721752,7.36094228,191.43,191.41,179.39999684]
[1761329722053,2.79,191.43,191.41,179.39999684]
[1761329722251,2.79,191.43,191.37,7.3821]
[1761329722451,7.36146583,191.43,191.37,7.3821]
[1761329722752,7.36146583,191.43,191.37,4.7021]
[1761329722954,7.36146583,191.43,191.38,2.68]
[1761329723251,4.57140076,191.43,191.38,2.68]
[1761329723452,2.79,191.42,191.38,2.68]
[1761329723654,2.79,191.42,191.38,2.18214078]
[1761329723855,2.79,191.42,191.39,2.68]
[1761329724548,7.361819,191.42,191.39,2.68]
[1761329724750,2.79,191.42,191.39,2.68]
[1761329725346,7.361819,191.42,191.39,2.68]
[1761329725551,2.79,191.42,191.39,2.68]
[1761329726154,7.361819,191.42,191.39,2.68]
[1761329726351,2.79,191.42,191.39,2.68]
[1761329726954,7.361819,191.42,191.39,2.68]
[1761329727154,2.79,191.42,191.39,2.68]
[1761329728355,7.36320059,191.42,191.39,2.68]
[1761329728556,2.79,191.42,191.39,2.68]
[1761329729150,7.36320059,191.42,191.39,2.68]
[1761329729352,2.79,191.42,191.39,2.68]
[1761329731056,2.79,191.42,191.39,4.86214078]
[1761329731258,7.36570574,191.45,191.4,2.68]
[1761329731463,4.57570574,191.44,191.4,2.68]
[1761329731652,4.57570574,191.43,191.42,2.68]
[1761329732460,4.57570574,191.46,191.42,2.68]
[1761329732760,4.57570574,191.45,191.42,2.68]
[1761329732962,4.57570574,191.46,191.42,2.68]
[1761329733156,2.79,191.5,191.44,2.68]
[1761329733359,4.5749333,191.49,191.44,2.68]
[1761329733560,4.5749333,191.48,191.44,2.68]
[1761329733856,4.5749333,191.47,191.44,2.68]
[1761329734062,4.5749333,191.46,191.44,2.68]
[1761329734259,7.3649333,191.49,191.44,2.68]
[1761329734461,7.3649333,191.48,191.44,2.68]
[1761329734663,4.5749333,191.47,191.44,2.68]
[1761329734857,4.5749333,191.46,191.44,2.68]
[1761329735058,7.3649333,191.48,191.44,2.68]
[1761329735262,4.5749333,191.47,191.44,2.68]
[1761329735558,2.79,191.48,191.44,2.68]
[1761329735861,4.57580698,191.47,191.44,2.68]
[1761329736065,7.36580698,191.5,191.46,2.68]
[1761329736359,4.86669938,191.53,191.41,4.88548183]
[1761329736360,4.57580698,191.49,191.48,2.68]
[1761329738765,2.79,191.48,191.45,5.04214078]
[1761329738959,2.79,191.48,191.45,2.86]
[1761329740067,2.79,191.51,191.46,2.86]
[1761329740365,2.79,191.49,191.46,2.86]
[1761329740566,4.60807319,191.48,191.46,2.86]
[1761329740761,2.79,191.49,191.46,2.86]
[1761329740973,4.60938831,191.48,191.46,2.86]
[1761329741158,2.79,191.49,191.46,2.86]
[1761329741353,4.60923564,191.48,191.46,2.86]
[1761329741560,2.79,191.49,191.46,2.86]
[1761329741757,4.60930327,191.48,191.46,2.86]
[1761329741958,2.79,191.49,191.46,2.86]
[1761329742159,4.60930363,191.48,191.46,2.86]
[1761329742366,2.79,191.49,191.46,2.86]
[1761329742557,4.60985257,191.48,191.46,2.86]
[1761329742752,2.79,191.49,191.46,2.86]
[1761329742963,4.60985257,191.48,191.46,2.86]
[1761329743161,2.79,191.49,191.46,2.86]
[1761329743367,4.60964935,191.48,191.46,2.86]
[1761329744165,2.79,191.49,191.46,2.86]
[1761329744354,4.61004709,191.48,191.46,2.86]
[1761329745267,2.79,191.49,191.46,2.86]
[1761329745468,2.79,191.47,191.45,2.18214078]
[1761329745768,2.79,191.47,191.44,2.86]
[1761329749567,2.79,191.52,191.44,2.86]
[1761329749764,7.40188153,191.51,191.46,2.86]
[1761329749964,4.61188153,191.5,191.46,2.86]
[1761329750160,4.61188153,191.49,191.46,2.86]
[1761329750360,4.61188153,191.48,191.46,2.86]
[1761329750669,2.79,191.51,191.46,2.86]
[1761329750870,7.40261784,191.5,191.46,2.86]
[1761329751069,4.61261784,191.49,191.46,2.86]
[1761329751368,4.61261784,191.48,191.46,2.86]
[1761329751573,2.79,191.5,191.46,2.86]
[1761329751756,7.40294764,191.49,191.46,2.86]
[1761329751960,4.61294764,191.48,191.46,2.86]
[1761329752161,2.79,191.49,191.46,2.86]
[1761329752460,4.61325907,191.48,191.46,2.86]
[1761329752660,2.79,191.49,191.46,2.86]
[1761329752856,4.61326016,191.48,191.46,2.86]
[1761329753065,22.04884016,191.55,191.46,2.86]
[1761329753370,2.79,191.5,191.46,2.86]
[1761329753571,2.79,191.48,191.46,2.86]
[1761329753763,2.79,191.52,191.46,2.86]
[1761329753963,2.79,191.5,191.46,2.86]